[Event "*** Monthly 3|2 Blitz Masters"]
[Site "Chess.com"]
[Date "2014.11.25"]
[Round "1"]
[White "oggy1984"]
[Black "GeorgMeier"]
[Result "0-1"]
[WhiteElo "2230"]
[BlackElo "2555"]
[TimeControl "180+2"]
[EndTime "11:09:31 PST"]
[Termination "GeorgMeier won by resignation"]

1. e4 {[%clk 0:02:54.6]} 1... e6 {[%clk 0:02:59]} 2. d4 {[%clk 0:02:54.9]} 2...
d5 {[%clk 0:03:00.4]} 3. Nc3 {[%clk 0:02:56.4]} 3... dxe4 {[%clk 0:03:01.5]} 4.
Nxe4 {[%clk 0:02:57]} 4... Nd7 {[%clk 0:03:03.4]} 5. Nf3 {[%clk 0:02:57.5]} 5...
Ngf6 {[%clk 0:03:05.3]} 6. Bd3 {[%clk 0:02:58.4]} 6... c5 {[%clk 0:03:05.7]} 7.
dxc5 {[%clk 0:02:57.2]} 7... Nxe4 {[%clk 0:03:06.1]} 8. Bxe4 {[%clk 0:02:57.5]}
8... Nxc5 {[%clk 0:03:05.7]} 9. Qxd8+ {[%clk 0:02:44.6]} 9... Kxd8 {[%clk
0:03:07.6]} 10. Nd2 {[%clk 0:02:44.4]} 10... f6 {[%clk 0:03:05.8]} 11. Bf3
{[%clk 0:02:42.8]} 11... e5 {[%clk 0:03:06.4]} 12. Nb3 {[%clk 0:02:35.6]} 12...
Na4 {[%clk 0:02:46.9]} 13. O-O {[%clk 0:02:33.5]} 13... Kc7 {[%clk 0:02:45.7]}
14. Nd2 {[%clk 0:02:07.1]} 14... Be6 {[%clk 0:02:37.9]} 15. b3 {[%clk
0:01:58.1]} 15... Nc5 {[%clk 0:02:17.7]} 16. Ne4 {[%clk 0:01:54.6]} 16... Nxe4
{[%clk 0:02:15.4]} 17. Bxe4 {[%clk 0:01:55.1]} 17... Bc5 {[%clk 0:02:16.9]} 18.
Bb2 {[%clk 0:01:50.1]} 18... Rad8 {[%clk 0:02:10.9]} 19. Rfd1 {[%clk 0:01:47.2]}
19... g6 {[%clk 0:02:04.2]} 20. c4 {[%clk 0:01:45.3]} 20... Rhe8 {[%clk
0:01:56.2]} 21. Kf1 {[%clk 0:01:42.4]} 21... Bg4 {[%clk 0:01:54.4]} 22. f3
{[%clk 0:01:41.2]} 22... Be6 {[%clk 0:01:52.4]} 23. Bc2 {[%clk 0:01:37]} 23...
Bf5 {[%clk 0:01:50.2]} 24. Be4 {[%clk 0:01:27.9]} 24... Be6 {[%clk 0:01:41.4]}
25. Bc2 {[%clk 0:01:22.2]} 25... a6 {[%clk 0:01:41.6]} 26. Rxd8 {[%clk
0:01:22.4]} 26... Rxd8 {[%clk 0:01:43.5]} 27. Rd1 {[%clk 0:01:23.8]} 27... Rxd1+
{[%clk 0:01:43.2]} 28. Bxd1 {[%clk 0:01:25.7]} 28... Bf5 {[%clk 0:01:44.1]} 29.
Ke2 {[%clk 0:01:26.8]} 29... a5 {[%clk 0:01:32.6]} 30. Kd2 {[%clk 0:01:24]}
30... Kd6 {[%clk 0:01:24.2]} 31. Bc2 {[%clk 0:01:21.9]} 31... Be6 {[%clk
0:01:23.5]} 32. Be4 {[%clk 0:01:21.3]} 32... b6 {[%clk 0:01:24.3]} 33. Bc2
{[%clk 0:01:22]} 33... f5 {[%clk 0:01:25]} 34. Ke2 {[%clk 0:01:20.9]} 34... Bd7
{[%clk 0:01:26]} 35. Bc3 {[%clk 0:01:21.1]} 35... Bc6 {[%clk 0:01:27]} 36. Bb2
{[%clk 0:01:22.1]} 36... Ke6 {[%clk 0:01:27.9]} 37. Bc3 {[%clk 0:01:22.1]} 37...
h5 {[%clk 0:01:25.5]} 38. h3 {[%clk 0:01:21.4]} 38... h4 {[%clk 0:01:16.6]} 39.
Be1 {[%clk 0:01:21.1]} 39... g5 {[%clk 0:01:16.1]} 40. Bc3 {[%clk 0:01:17.5]}
40... e4 {[%clk 0:01:04.8]} 41. fxe4 {[%clk 0:01:14.3]} 41... fxe4 {[%clk
0:01:06.7]} 42. Be1 {[%clk 0:01:10.4]} 42... Ke5 {[%clk 0:00:50.8]} 43. g3
{[%clk 0:01:07.6]} 43... hxg3 {[%clk 0:00:49.5]} 44. Bxg3+ {[%clk 0:01:09.5]}
44... Kd4 {[%clk 0:00:50.9]} 45. Be1 {[%clk 0:01:08.1]} 45... e3 {[%clk
0:00:34.5]} 46. Bf5 {[%clk 0:01:01.9]} 46... Bg2 {[%clk 0:00:31.9]} 47. Bg4
{[%clk 0:00:54.3]} 47... Be4 {[%clk 0:00:31.3]} 48. h4 {[%clk 0:00:51.9]} 48...
Bd3+ {[%clk 0:00:30.3]} 49. Kd1 {[%clk 0:00:52.9]} 49... gxh4 {[%clk 0:00:30.3]}
50. Bxh4 {[%clk 0:00:54.8]} 50... Kc3 {[%clk 0:00:31]} 51. Bf6+ {[%clk
0:00:53.7]} 51... Bd4 {[%clk 0:00:32.2]} 52. Bxd4+ {[%clk 0:00:54.3]} 52... Kxd4
{[%clk 0:00:34.1]} 53. Kc1 {[%clk 0:00:51.2]} 53... Kc3 {[%clk 0:00:34.9]} 54.
Kd1 {[%clk 0:00:49.2]} 54... Kb2 {[%clk 0:00:35.2]} 55. Be2 {[%clk 0:00:50.2]}
55... Bxe2+ {[%clk 0:00:33.5]} 56. Kxe2 {[%clk 0:00:52.1]} 56... Kxa2 {[%clk
0:00:35]} 57. Kxe3 {[%clk 0:00:53.1]} 57... Kxb3 {[%clk 0:00:36.1]} 58. Kd3
{[%clk 0:00:54.1]} 58... a4 {[%clk 0:00:37.2]} 0-1

[Event "*** Monthly 3|2 Blitz Masters"]
[Site "Chess.com"]
[Date "2014.11.25"]
[Round "1"]
[White "ChessWarrior7197"]
[Black "GedoGluperd"]
[Result "0-1"]
[WhiteElo "1806"]
[BlackElo "2305"]
[TimeControl "180+2"]
[EndTime "11:10:22 PST"]
[Termination "GedoGluperd won by resignation"]

1. e4 {[%clk 0:02:56.1]} 1... c5 {[%clk 0:02:57.5]} 2. Nf3 {[%clk 0:02:56.5]}
2... Nc6 {[%clk 0:02:57.1]} 3. Bb5 {[%clk 0:02:56.7]} 3... g6 {[%clk 0:02:56.7]}
4. Bxc6 {[%clk 0:02:57.3]} 4... dxc6 {[%clk 0:02:54.3]} 5. d3 {[%clk 0:02:57.8]}
5... Bg7 {[%clk 0:02:53.8]} 6. O-O {[%clk 0:02:58.6]} 6... e5 {[%clk 0:02:49.4]}
7. h3 {[%clk 0:02:58.5]} 7... Qe7 {[%clk 0:02:40.5]} 8. Nbd2 {[%clk 0:02:57.9]}
8... Nf6 {[%clk 0:02:35.8]} 9. Nc4 {[%clk 0:02:56]} 9... Nd7 {[%clk 0:02:35.2]}
10. a4 {[%clk 0:02:56]} 10... Nf8 {[%clk 0:02:28.4]} 11. b3 {[%clk 0:02:54.7]}
11... f6 {[%clk 0:02:24.7]} 12. a5 {[%clk 0:02:53.1]} 12... Ne6 {[%clk
0:02:21.6]} 13. Ba3 {[%clk 0:02:48.1]} 13... O-O {[%clk 0:02:22.3]} 14. Qd2
{[%clk 0:02:47.5]} 14... Rd8 {[%clk 0:02:20.9]} 15. Qe3 {[%clk 0:02:47.6]} 15...
Bf8 {[%clk 0:02:11.9]} 16. Rab1 {[%clk 0:02:46.7]} 16... Qc7 {[%clk 0:02:08.2]}
17. c3 {[%clk 0:02:32.1]} 17... Bd7 {[%clk 0:02:04.5]} 18. g3 {[%clk 0:02:26.2]}
18... Be8 {[%clk 0:01:59.9]} 19. b4 {[%clk 0:02:20.6]} 19... cxb4 {[%clk
0:01:58.8]} 20. Bxb4 {[%clk 0:02:17.9]} 20... Rd7 {[%clk 0:01:50]} 21. Bxf8
{[%clk 0:02:14.8]} 21... Kxf8 {[%clk 0:01:49.9]} 22. Nh2 {[%clk 0:02:10.6]}
22... Rad8 {[%clk 0:01:49.7]} 23. Rfd1 {[%clk 0:02:07.9]} 23... Kg7 {[%clk
0:01:47.6]} 24. Ng4 {[%clk 0:02:07.5]} 24... g5 {[%clk 0:01:49]} 25. Qe2 {[%clk
0:02:02.7]} 25... Bf7 {[%clk 0:01:47.2]} 26. Nce3 {[%clk 0:01:57.5]} 26... Bg6
{[%clk 0:01:46.9]} 27. Qf3 {[%clk 0:01:49]} 27... Rf8 {[%clk 0:01:45.1]} 28.
Nf5+ {[%clk 0:01:39.9]} 28... Kh8 {[%clk 0:01:40.7]} 29. h4 {[%clk 0:01:36.7]}
29... Qxa5 {[%clk 0:01:40]} 30. hxg5 {[%clk 0:01:35.3]} 30... Nxg5 {[%clk
0:01:40.9]} 31. Qe3 {[%clk 0:01:35.6]} 31... Qxc3 {[%clk 0:01:33.9]} 32. Kg2
{[%clk 0:01:33.9]} 32... Bxf5 {[%clk 0:01:30.5]} 33. exf5 {[%clk 0:01:34.5]}
33... Qd4 {[%clk 0:01:32.1]} 34. Qe2 {[%clk 0:01:28.6]} 34... Qd5+ {[%clk
0:01:29.4]} 35. f3 {[%clk 0:01:29.3]} 35... c5 {[%clk 0:01:24.6]} 36. Ne3 {[%clk
0:01:29.1]} 36... Qc6 {[%clk 0:01:22.7]} 37. Rh1 {[%clk 0:01:25.4]} 37... b5
{[%clk 0:01:21.7]} 38. Rh4 {[%clk 0:01:22.6]} 38... b4 {[%clk 0:01:22.1]} 39.
Kf2 {[%clk 0:01:19.5]} 39... a5 {[%clk 0:01:21.5]} 40. f4 {[%clk 0:01:18.3]}
40... exf4 {[%clk 0:01:21.4]} 41. gxf4 {[%clk 0:01:19.3]} 41... Nf7 {[%clk
0:01:20]} 42. Rxh7+ {[%clk 0:01:13.9]} 42... Kxh7 {[%clk 0:01:19.6]} 43. Qh5+
{[%clk 0:01:15]} 43... Nh6 {[%clk 0:01:16.8]} 44. Qg6+ {[%clk 0:01:15.6]} 44...
Kh8 {[%clk 0:01:18.2]} 45. Qxh6+ {[%clk 0:00:54.2]} 45... Kg8 {[%clk 0:01:17.9]}
46. Rg1+ {[%clk 0:00:37.9]} 46... Kf7 {[%clk 0:01:18.2]} 47. Ng4 {[%clk
0:00:38.6]} 47... Ke8 {[%clk 0:01:13.8]} 48. Re1+ {[%clk 0:00:38.9]} 48... Re7
{[%clk 0:01:13.9]} 49. Ne5 {[%clk 0:00:35.2]} 49... Qd5 {[%clk 0:01:09.1]} 50.
Ng6 {[%clk 0:00:35.5]} 50... Qd4+ {[%clk 0:01:00]} 51. Kg2 {[%clk 0:00:35.4]}
51... Qd5+ {[%clk 0:00:53.5]} 52. Kh2 {[%clk 0:00:32.5]} 52... Rxe1 {[%clk
0:00:52.1]} 53. Qxf8+ {[%clk 0:00:32.4]} 53... Kd7 {[%clk 0:00:53.4]} 54. Qxf6
{[%clk 0:00:32.6]} 54... Re2+ {[%clk 0:00:48.3]} 55. Kh3 {[%clk 0:00:29.7]}
55... Re3+ {[%clk 0:00:47.8]} 56. Kg4 {[%clk 0:00:27]} 56... Qg2+ {[%clk
0:00:38]} 57. Kh5 {[%clk 0:00:26.7]} 57... Rh3+ {[%clk 0:00:38.2]} 58. Nh4
{[%clk 0:00:26.8]} 58... Qe2+ {[%clk 0:00:39.1]} 59. Kh6 {[%clk 0:00:24.9]}
59... Qe7 {[%clk 0:00:38]} 60. Qxe7+ {[%clk 0:00:21.7]} 60... Kxe7 {[%clk
0:00:39.1]} 61. Kg5 {[%clk 0:00:23.2]} 61... Rxh4 {[%clk 0:00:39.6]} 62. Kxh4
{[%clk 0:00:24]} 62... b3 {[%clk 0:00:40.8]} 63. Kh5 {[%clk 0:00:24.4]} 63...
Kf6 {[%clk 0:00:39.7]} 64. Kh6 {[%clk 0:00:23.2]} 64... b2 {[%clk 0:00:40.5]}
0-1

[Event "*** Monthly 3|2 Blitz Masters"]
[Site "Chess.com"]
[Date "2014.11.25"]
[Round "1"]
[White "vovkcoach"]
[Black "Argente"]
[Result "1-0"]
[WhiteElo "2486"]
[BlackElo "2165"]
[TimeControl "180+2"]
[EndTime "11:11:12 PST"]
[Termination "vovkcoach won by resignation"]

1. e4 {[%clk 0:02:56.9]} 1... g6 {[%clk 0:02:59.5]} 2. d4 {[%clk 0:02:57.6]}
2... Bg7 {[%clk 0:03:01.1]} 3. Nf3 {[%clk 0:02:59.5]} 3... d6 {[%clk 0:03:02.1]}
4. Nc3 {[%clk 0:03:01.4]} 4... Nf6 {[%clk 0:03:02.9]} 5. h3 {[%clk 0:02:58.7]}
5... O-O {[%clk 0:03:02.8]} 6. Be3 {[%clk 0:02:58.2]} 6... c6 {[%clk 0:03:03.7]}
7. Bd3 {[%clk 0:02:53.8]} 7... Nbd7 {[%clk 0:03:04.4]} 8. O-O {[%clk 0:02:53.8]}
8... e5 {[%clk 0:03:05.4]} 9. dxe5 {[%clk 0:02:48.3]} 9... dxe5 {[%clk
0:03:07.3]} 10. a4 {[%clk 0:02:48.6]} 10... Qe7 {[%clk 0:03:08.5]} 11. Qd2
{[%clk 0:02:43.2]} 11... Nc5 {[%clk 0:03:08.3]} 12. Bh6 {[%clk 0:02:43.4]} 12...
Rd8 {[%clk 0:03:07.5]} 13. Bxg7 {[%clk 0:02:43.8]} 13... Kxg7 {[%clk 0:03:09.4]}
14. Qe3 {[%clk 0:02:39]} 14... Nh5 {[%clk 0:03:04.4]} 15. Rfd1 {[%clk
0:02:35.7]} 15... Nxd3 {[%clk 0:02:51.3]} 16. cxd3 {[%clk 0:02:35.7]} 16... Qf6
{[%clk 0:02:04.8]} 17. Kh2 {[%clk 0:02:29]} 17... Be6 {[%clk 0:01:56.9]} 18. g4
{[%clk 0:02:25.2]} 18... Qf4+ {[%clk 0:01:38]} 19. Qxf4 {[%clk 0:02:25.5]} 19...
Nxf4 {[%clk 0:01:39.9]} 20. d4 {[%clk 0:02:26]} 20... Bb3 {[%clk 0:01:36.7]} 21.
Rd2 {[%clk 0:02:25.3]} 21... f6 {[%clk 0:01:33.3]} 22. dxe5 {[%clk 0:02:20.2]}
22... fxe5 {[%clk 0:01:30.1]} 23. Rxd8 {[%clk 0:02:18.4]} 23... Rxd8 {[%clk
0:01:31]} 24. Nxe5 {[%clk 0:02:20.3]} 24... Rd2 {[%clk 0:01:30.6]} 25. Kg3
{[%clk 0:02:20.1]} 25... g5 {[%clk 0:01:22.2]} 26. Re1 {[%clk 0:01:58.2]} 26...
Rxb2 {[%clk 0:01:16.4]} 27. h4 {[%clk 0:01:59.2]} 27... h6 {[%clk 0:01:14.5]}
28. hxg5 {[%clk 0:02:00]} 28... hxg5 {[%clk 0:01:15.4]} 29. Nf3 {[%clk
0:02:00.7]} 29... Kg6 {[%clk 0:01:09.8]} 30. Nd4 {[%clk 0:01:43.9]} 30... Bxa4
{[%clk 0:00:50.7]} 31. Ra1 {[%clk 0:01:14.8]} 31... Bb3 {[%clk 0:00:31.4]} 32.
Rxa7 {[%clk 0:01:14.1]} 32... Bf7 {[%clk 0:00:29.9]} 33. Nf3 {[%clk 0:00:59.6]}
33... Rb3 {[%clk 0:00:29.7]} 34. Ne5+ {[%clk 0:00:20.8]} 34... Kf6 {[%clk
0:00:26.5]} 35. Nd7+ {[%clk 0:00:11.8]} 35... Kg7 {[%clk 0:00:26.1]} 36. Kh2
{[%clk 0:00:12.5]} 36... Rxc3 {[%clk 0:00:27.1]} 37. Rxb7 {[%clk 0:00:14.4]}
37... Rc2 {[%clk 0:00:25.5]} 38. Ne5 {[%clk 0:00:13.1]} 38... Rxf2+ {[%clk
0:00:26.4]} 39. Kg3 {[%clk 0:00:14]} 39... Rg2+ {[%clk 0:00:17.5]} 40. Kf3
{[%clk 0:00:14.6]} 40... Kf6 {[%clk 0:00:17.3]} 41. Rxf7+ {[%clk 0:00:10]} 41...
Kxe5 {[%clk 0:00:17.1]} 42. Rf5+ {[%clk 0:00:11.9]} 42... Ke6 {[%clk 0:00:18.2]}
43. Rxg5 {[%clk 0:00:13.8]} 43... Rf2+ {[%clk 0:00:16.9]} 44. Ke3 {[%clk
0:00:11.9]} 44... Nh3 {[%clk 0:00:16.3]} 45. Rh5 {[%clk 0:00:11.9]} 45... Rh2
{[%clk 0:00:16.1]} 46. g5 {[%clk 0:00:11.2]} 46... Kf7 {[%clk 0:00:17.2]} 47.
Rh6 {[%clk 0:00:12.4]} 47... c5 {[%clk 0:00:18.1]} 48. g6+ {[%clk 0:00:08.7]}
48... Kg7 {[%clk 0:00:19.2]} 49. Rh5 {[%clk 0:00:10.6]} 49... c4 {[%clk
0:00:19.6]} 50. Rc5 {[%clk 0:00:11.7]} 50... Rc2 {[%clk 0:00:19.2]} 51. Rc6
{[%clk 0:00:11.4]} 51... Ng5 {[%clk 0:00:18.3]} 52. Kf4 {[%clk 0:00:12.5]} 52...
Nh3+ {[%clk 0:00:18.8]} 53. Kf5 {[%clk 0:00:13.7]} 53... Rf2+ {[%clk 0:00:16.9]}
54. Kg4 {[%clk 0:00:14.5]} 54... Nf4 {[%clk 0:00:16.6]} 55. Kg5 {[%clk 0:00:15]}
55... Nd3 {[%clk 0:00:16]} 56. Rc7+ {[%clk 0:00:14.6]} 56... Kf8 {[%clk
0:00:16.5]} 57. Rxc4 {[%clk 0:00:16.5]} 57... Ne5 {[%clk 0:00:16]} 58. Rc8+
{[%clk 0:00:16.5]} 58... Kg7 {[%clk 0:00:15.1]} 59. Rc7+ {[%clk 0:00:18.4]}
59... Kf8 {[%clk 0:00:15.9]} 60. g7+ {[%clk 0:00:18.9]} 60... Kg8 {[%clk
0:00:16]} 61. Rb7 {[%clk 0:00:20.8]} 61... Nf7+ {[%clk 0:00:14.7]} 62. Kg6
{[%clk 0:00:21.6]} 62... Rg2+ {[%clk 0:00:15.8]} 63. Kf6 {[%clk 0:00:22.4]}
63... Rxg7 {[%clk 0:00:15.7]} 64. e5 {[%clk 0:00:23.7]} 64... Rg1 {[%clk
0:00:13.8]} 65. Rb8+ {[%clk 0:00:23.3]} 65... Kh7 {[%clk 0:00:14.3]} 66. Kxf7
{[%clk 0:00:24.7]} 66... Rf1+ {[%clk 0:00:10.8]} 67. Ke7 {[%clk 0:00:23.1]}
67... Kg7 {[%clk 0:00:11.8]} 68. e6 {[%clk 0:00:22.8]} 68... Rd1 {[%clk
0:00:12.6]} 69. Rb3 {[%clk 0:00:20.6]} 69... Ra1 {[%clk 0:00:08.8]} 70. Rg3+
{[%clk 0:00:21.2]} 70... Kh7 {[%clk 0:00:09.6]} 71. Kf7 {[%clk 0:00:20.3]} 71...
Rf1+ {[%clk 0:00:09.4]} 72. Ke8 {[%clk 0:00:21.8]} 1-0

[Event "*** Monthly 3|2 Blitz Masters"]
[Site "Chess.com"]
[Date "2014.11.25"]
[Round "1"]
[White "Chesseducation4u"]
[Black "patzerplay"]
[Result "1-0"]
[WhiteElo "2414"]
[BlackElo "2098"]
[TimeControl "180+2"]
[EndTime "11:11:29 PST"]
[Termination "Chesseducation4u won by resignation"]

1. Nf3 {[%clk 0:02:55.2]} 1... Nf6 {[%clk 0:02:58.5]} 2. g3 {[%clk 0:02:56]}
2... d5 {[%clk 0:02:57.5]} 3. Bg2 {[%clk 0:02:56.3]} 3... g6 {[%clk 0:02:57.7]}
4. b3 {[%clk 0:02:56.8]} 4... Bg7 {[%clk 0:02:58.6]} 5. Bb2 {[%clk 0:02:58.7]}
5... O-O {[%clk 0:03:00.1]} 6. O-O {[%clk 0:03:00.3]} 6... c6 {[%clk 0:02:57.9]}
7. c4 {[%clk 0:03:01.5]} 7... e6 {[%clk 0:02:57.8]} 8. Qc2 {[%clk 0:03:02.6]}
8... Na6 {[%clk 0:02:57.5]} 9. a3 {[%clk 0:03:02.3]} 9... Re8 {[%clk 0:02:57]}
10. d3 {[%clk 0:03:03.4]} 10... b6 {[%clk 0:02:55.1]} 11. Nbd2 {[%clk
0:03:03.6]} 11... Bb7 {[%clk 0:02:56.3]} 12. b4 {[%clk 0:03:04]} 12... Rc8
{[%clk 0:02:57]} 13. e4 {[%clk 0:03:04.5]} 13... c5 {[%clk 0:02:52.9]} 14. b5
{[%clk 0:02:59.8]} 14... Nc7 {[%clk 0:02:53.8]} 15. e5 {[%clk 0:03:00.8]} 15...
Nd7 {[%clk 0:02:51.1]} 16. Rfe1 {[%clk 0:03:01.9]} 16... d4 {[%clk 0:02:51.1]}
17. Re2 {[%clk 0:02:55.9]} 17... h5 {[%clk 0:02:49.6]} 18. Rae1 {[%clk
0:02:56.2]} 18... a6 {[%clk 0:02:45.1]} 19. a4 {[%clk 0:02:55.7]} 19... a5
{[%clk 0:02:45.1]} 20. Nh4 {[%clk 0:02:53.2]} 20... Bxg2 {[%clk 0:02:44.6]} 21.
Kxg2 {[%clk 0:02:53.8]} 21... Qe7 {[%clk 0:02:33.9]} 22. f4 {[%clk 0:02:54.5]}
22... Kh7 {[%clk 0:02:35.1]} 23. Nhf3 {[%clk 0:02:54.4]} 23... Kg8 {[%clk
0:02:35.5]} 24. Ne4 {[%clk 0:02:54.9]} 24... Red8 {[%clk 0:02:36]} 25. h3 {[%clk
0:02:54.5]} 25... Nf8 {[%clk 0:02:35.5]} 26. Bc1 {[%clk 0:02:54.8]} 26... Ne8
{[%clk 0:02:35.8]} 27. Rf1 {[%clk 0:02:53.4]} 27... Qb7 {[%clk 0:02:36.5]} 28.
Kf2 {[%clk 0:02:53.5]} 28... Rd7 {[%clk 0:02:30.4]} 29. Bd2 {[%clk 0:02:53.4]}
29... Bh6 {[%clk 0:02:29.7]} 30. Ke1 {[%clk 0:02:53.9]} 30... Ng7 {[%clk
0:02:31]} 31. Kd1 {[%clk 0:02:54.7]} 31... Nf5 {[%clk 0:02:32.2]} 32. Rg1 {[%clk
0:02:47.7]} 32... Rcd8 {[%clk 0:02:28]} 33. Kc1 {[%clk 0:02:46.9]} 33... Kg7
{[%clk 0:02:28.6]} 34. Kb2 {[%clk 0:02:47.7]} 34... Ne3 {[%clk 0:02:29.3]} 35.
Bxe3 {[%clk 0:02:44]} 35... dxe3 {[%clk 0:02:30.4]} 36. Rxe3 {[%clk 0:02:44.8]}
36... Nh7 {[%clk 0:02:26.2]} 37. Nd6 {[%clk 0:02:34.3]} 37... Qc7 {[%clk
0:02:23.7]} 38. Qc3 {[%clk 0:02:34.8]} 38... Kg8 {[%clk 0:02:23.6]} 39. Kb3
{[%clk 0:02:35.1]} 39... Nf8 {[%clk 0:02:24.2]} 40. Re4 {[%clk 0:02:35.4]} 40...
Bg7 {[%clk 0:02:23.9]} 41. Qc2 {[%clk 0:02:25.9]} 41... Rxd6 {[%clk 0:02:14.1]}
42. exd6 {[%clk 0:02:25.9]} 42... Rxd6 {[%clk 0:02:16]} 43. Rd1 {[%clk
0:02:25.6]} 43... Nd7 {[%clk 0:02:16.4]} 44. Qe2 {[%clk 0:02:25.2]} 44... Qd8
{[%clk 0:02:16.9]} 45. Ne5 {[%clk 0:02:22.7]} 45... Nf6 {[%clk 0:02:11.7]} 46.
Nc6 {[%clk 0:02:17.2]} 46... Qc7 {[%clk 0:02:12]} 47. Re3 {[%clk 0:02:18.2]}
47... Ne8 {[%clk 0:02:10.2]} 48. Kc2 {[%clk 0:02:15.3]} 48... Qd7 {[%clk
0:02:10.5]} 49. Ne5 {[%clk 0:02:14.2]} 49... Qe7 {[%clk 0:02:11.4]} 50. Qf3
{[%clk 0:02:13.3]} 50... Nf6 {[%clk 0:02:05.5]} 51. Qa8+ {[%clk 0:02:12.7]}
51... Kh7 {[%clk 0:02:06.2]} 52. g4 {[%clk 0:02:10.6]} 52... Nd7 {[%clk
0:02:05.9]} 53. gxh5 {[%clk 0:02:07.4]} 53... gxh5 {[%clk 0:02:02.7]} 54. Qf3
{[%clk 0:02:03.6]} 54... Qf6 {[%clk 0:01:56.6]} 55. Qxh5+ {[%clk 0:02:00.8]}
55... Kg8 {[%clk 0:01:57.8]} 56. Qg4 {[%clk 0:01:59.5]} 56... Rd4 {[%clk
0:01:57.1]} 57. Rg1 {[%clk 0:01:53.5]} 57... Nxe5 {[%clk 0:01:50]} 58. Qxg7+
{[%clk 0:01:23.1]} 58... Qxg7 {[%clk 0:01:50.5]} 59. Rxg7+ {[%clk 0:01:24.8]}
59... Kxg7 {[%clk 0:01:52.4]} 60. fxe5 {[%clk 0:01:25.8]} 60... Kg6 {[%clk
0:01:51.1]} 61. Rg3+ {[%clk 0:01:23.4]} 61... Kf5 {[%clk 0:01:52]} 62. Rg7
{[%clk 0:01:22.8]} 62... Rd7 {[%clk 0:01:51.8]} 63. d4 {[%clk 0:01:19.6]} 63...
cxd4 {[%clk 0:01:50.6]} 64. Kd3 {[%clk 0:01:19.8]} 64... Kxe5 {[%clk 0:01:50.8]}
65. h4 {[%clk 0:01:20.5]} 65... Kf6 {[%clk 0:01:51]} 66. Rg8 {[%clk 0:01:21.8]}
66... e5 {[%clk 0:01:37.6]} 67. h5 {[%clk 0:01:22.9]} 67... e4+ {[%clk
0:00:56.8]} 68. Kxe4 {[%clk 0:01:22]} 68... d3 {[%clk 0:00:58.4]} 69. Rg1 {[%clk
0:01:09.4]} 69... d2 {[%clk 0:00:57.4]} 70. Rd1 {[%clk 0:01:02.2]} 70... Kg5
{[%clk 0:00:58.2]} 71. Ke3 {[%clk 0:00:49.7]} 71... Kxh5 {[%clk 0:00:58.7]} 72.
Rxd2 {[%clk 0:00:50.9]} 72... Rc7 {[%clk 0:01:00]} 73. Rd5+ {[%clk 0:00:44.6]}
73... Kg4 {[%clk 0:00:58.1]} 74. Kd4 {[%clk 0:00:46.5]} 74... f5 {[%clk
0:00:58.2]} 75. Rd6 {[%clk 0:00:48.1]} 75... Rb7 {[%clk 0:00:41]} 76. Rg6+
{[%clk 0:00:48.1]} 76... Kf3 {[%clk 0:00:37.9]} 77. Kd5 {[%clk 0:00:48.5]} 77...
Re7 {[%clk 0:00:32.4]} 78. Kc6 {[%clk 0:00:44]} 78... Re4 {[%clk 0:00:32.8]} 79.
Kxb6 {[%clk 0:00:41.9]} 79... Rxc4 {[%clk 0:00:33.6]} 80. Kxa5 {[%clk
0:00:43.6]} 80... Ke4 {[%clk 0:00:23.5]} 81. b6 {[%clk 0:00:42.2]} 81... Rc1
{[%clk 0:00:23.5]} 82. b7 {[%clk 0:00:40.7]} 82... Rb1 {[%clk 0:00:22.7]} 83.
Rb6 {[%clk 0:00:41]} 83... Rxb6 {[%clk 0:00:24.6]} 84. Kxb6 {[%clk 0:00:41.7]}
1-0

[Event "*** Monthly 3|2 Blitz Masters"]
[Site "Chess.com"]
[Date "2014.11.25"]
[Round "2"]
[White "Yaacovn"]
[Black "juniortay"]
[Result "1-0"]
[WhiteElo "2590"]
[BlackElo "2210"]
[TimeControl "180+2"]
[EndTime "11:17:21 PST"]
[Termination "Yaacovn won by resignation"]

1. d4 {[%clk 0:01:49.1]} 1... Nf6 {[%clk 0:02:57]} 2. Bg5 {[%clk 0:01:45]} 2...
Ne4 {[%clk 0:02:57.3]} 3. Bf4 {[%clk 0:01:45.2]} 3... c5 {[%clk 0:02:58.4]} 4.
c3 {[%clk 0:01:43.2]} 4... g6 {[%clk 0:02:50.2]} 5. dxc5 {[%clk 0:01:40.3]} 5...
Bg7 {[%clk 0:02:46.6]} 6. Qd5 {[%clk 0:01:37.9]} 6... Nf6 {[%clk 0:02:38.7]} 7.
Qc4 {[%clk 0:01:33.6]} 7... O-O {[%clk 0:02:39.2]} 8. Nd2 {[%clk 0:01:19.1]}
8... b6 {[%clk 0:02:37.4]} 9. cxb6 {[%clk 0:01:13.8]} 9... Qxb6 {[%clk
0:02:35.2]} 10. Qb3 {[%clk 0:01:14.2]} 10... Nc6 {[%clk 0:02:20.4]} 11. e3
{[%clk 0:01:13.2]} 11... e5 {[%clk 0:01:55.4]} 12. Bg5 {[%clk 0:01:11.3]} 12...
Qc7 {[%clk 0:01:54]} 13. Ngf3 {[%clk 0:01:09.8]} 13... Rb8 {[%clk 0:01:55.2]}
14. Qa3 {[%clk 0:01:08.2]} 14... d5 {[%clk 0:01:52.3]} 15. Be2 {[%clk
0:01:07.2]} 15... Be6 {[%clk 0:01:51.2]} 16. O-O {[%clk 0:01:06.3]} 16... Rfc8
{[%clk 0:01:47.4]} 17. Rfd1 {[%clk 0:01:04.2]} 17... Na5 {[%clk 0:01:43.6]} 18.
Nxe5 {[%clk 0:01:03.6]} 18... Qxe5 {[%clk 0:01:38]} 19. Bf4 {[%clk 0:01:04.3]}
19... Qf5 {[%clk 0:01:20.4]} 20. Bxb8 {[%clk 0:01:04.3]} 20... Rxb8 {[%clk
0:01:19.7]} 21. Qxa5 {[%clk 0:01:04.7]} 21... Rxb2 {[%clk 0:01:13.5]} 22. Qxa7
{[%clk 0:01:05.1]} 22... Rxd2 {[%clk 0:01:07.9]} 23. Rxd2 {[%clk 0:01:04.1]}
23... Ne4 {[%clk 0:01:09.5]} 24. Bd3 {[%clk 0:01:05.2]} 1-0